[Event "Titled Tuesday Blitz July 18 Early 2023"]
[White "abelmat"]
[Black "Quirke, Jeffrey"]
[BlackFideId "2013029"]
[WhiteElo "1963"]
[BlackElo "2224"]
[Result "0-1"]
[Round "8"]
[TimeControl "180+2"]
[Date "2023.07.18"]
[WhiteClock "0:00:00"]
[BlackClock "0:00:05"]
[Board "172"]

1. d4 {[%clk 0:03:00]}  e6 {[%clk 0:02:59]} 2. c4 {[%clk 0:03:00]}  f5 {[%clk 0:02:59]} 3. Nf3 {[%clk 0:03:00]}  Nf6 {[%clk 0:02:59]} 4. Nc3 {[%clk 0:03:01]}  Bb4 {[%clk 0:02:57]} 5. e3 {[%clk 0:02:55]}  O-O {[%clk 0:02:56]} 6. Bd3 {[%clk 0:02:54]}  b6 {[%clk 0:02:54]} 7. Bd2 {[%clk 0:02:54]}  Bb7 {[%clk 0:02:53]} 8. O-O {[%clk 0:02:54]}  Bxc3 {[%clk 0:02:52]} 9. Bxc3 {[%clk 0:02:54]}  Ne4 {[%clk 0:02:50]} 10. Rc1 {[%clk 0:02:54]}  d6 {[%clk 0:02:46]} 11. Nd2 {[%clk 0:02:49]}  Nxc3 {[%clk 0:02:44]} 12. Rxc3 {[%clk 0:02:47]}  Nd7 {[%clk 0:02:41]} 13. e4 {[%clk 0:02:43]}  f4 {[%clk 0:02:40]} 14. Bb1 {[%clk 0:02:20]}  e5 {[%clk 0:02:38]} 15. d5 {[%clk 0:02:14]}  a5 {[%clk 0:02:37]} 16. a3 {[%clk 0:02:14]}  a4 {[%clk 0:02:30]} 17. Bd3 {[%clk 0:02:08]}  Nc5 {[%clk 0:02:29]} 18. Be2 {[%clk 0:01:56]}  Bc8 {[%clk 0:02:26]} 19. Bg4 {[%clk 0:01:52]}  Qe8 {[%clk 0:02:09]} 20. Bxc8 {[%clk 0:01:50]}  Rxc8 {[%clk 0:02:06]} 21. Rh3 {[%clk 0:01:46]}  Qg6 {[%clk 0:02:02]} 22. b4 {[%clk 0:01:11]}  axb3 {[%clk 0:01:58]} 23. f3 {[%clk 0:01:03]}  Ra8 {[%clk 0:01:53]} 24. Nxb3 {[%clk 0:01:00]}  Rxa3 {[%clk 0:01:46]} 25. Nxc5 {[%clk 0:01:00]}  bxc5 {[%clk 0:01:47]} 26. Qb1 {[%clk 0:00:53]}  Ra7 {[%clk 0:01:36]} 27. Rh4 {[%clk 0:00:43]}  Rfa8 {[%clk 0:01:33]} 28. Rg4 {[%clk 0:00:33]}  Qe8 {[%clk 0:01:33]} 29. Qe1 {[%clk 0:00:30]}  Ra2 {[%clk 0:01:25]} 30. Qh4 {[%clk 0:00:22]}  Rc2 {[%clk 0:01:12]} 31. Qg5 {[%clk 0:00:20]}  Qf8 {[%clk 0:01:06]} 32. h4 {[%clk 0:00:18]}  Rxc4 {[%clk 0:01:04]} 33. h5 {[%clk 0:00:19]}  Rb4 {[%clk 0:00:42]} 34. h6 {[%clk 0:00:17]}  g6 {[%clk 0:00:41]} 35. Qh4 {[%clk 0:00:14]}  Rb2 {[%clk 0:00:35]} 36. Qh3 {[%clk 0:00:11]}  Qf7 {[%clk 0:00:30]} 37. Rg5 {[%clk 0:00:10]}  c4 {[%clk 0:00:28]} 38. Rc1 {[%clk 0:00:10]}  Rb4 {[%clk 0:00:19]} 39. Qg4 {[%clk 0:00:08]}  Rd8 {[%clk 0:00:12]} 40. Qh4 {[%clk 0:00:05]}  Qd7 {[%clk 0:00:06]} 41. Qf2 {[%clk 0:00:04]}  Qb5 {[%clk 0:00:04]} 42. Qh4 {[%clk 0:00:02]}  Qd7 {[%clk 0:00:05]} 43. Qf2 {[%clk 0:00:00]}  Qe7 {[%clk 0:00:05]} 0-1


[Site "https://www.chess.com"]

[Event "Titled Tuesday Blitz July 18 Early 2023"]
[White "Winkels, Marcel"]
[Black "Saim, Mohamed Ilias"]
[WhiteFideId "1003887"]
[BlackFideId "7900465"]
[WhiteElo "2082"]
[BlackElo "1899"]
[Result "0-1"]
[Round "8"]
[TimeControl "180+2"]
[Date "2023.07.18"]
[WhiteClock "0:00:00"]
[BlackClock "0:00:46"]
[Board "177"]

1. e4 {[%clk 0:03:00]}  c6 {[%clk 0:02:58]} 2. d4 {[%clk 0:02:59]}  d5 {[%clk 0:02:59]} 3. e5 {[%clk 0:03:00]}  Bf5 {[%clk 0:02:58]} 4. c4 {[%clk 0:02:54]}  e6 {[%clk 0:02:56]} 5. cxd5 {[%clk 0:02:54]}  cxd5 {[%clk 0:02:57]} 6. Nc3 {[%clk 0:02:54]}  Nc6 {[%clk 0:02:52]} 7. g4 {[%clk 0:02:53]}  Bg6 {[%clk 0:02:49]} 8. h4 {[%clk 0:02:53]}  h5 {[%clk 0:02:49]} 9. Bg5 {[%clk 0:02:41]}  Qb6 {[%clk 0:02:45]} 10. Bb5 {[%clk 0:02:20]}  hxg4 {[%clk 0:02:38]} 11. Qxg4 {[%clk 0:02:11]}  Bh5 {[%clk 0:02:32]} 12. Qf4 {[%clk 0:02:06]}  Bb4 {[%clk 0:02:27]} 13. Bxc6+ {[%clk 0:01:49]}  bxc6 {[%clk 0:02:16]} 14. Qd2 {[%clk 0:01:46]}  c5 {[%clk 0:02:09]} 15. Be3 {[%clk 0:01:42]}  cxd4 {[%clk 0:02:02]} 16. Bxd4 {[%clk 0:01:41]}  Qa5 {[%clk 0:01:47]} 17. Nge2 {[%clk 0:01:36]}  Ne7 {[%clk 0:01:45]} 18. a3 {[%clk 0:01:28]}  Nf5 {[%clk 0:01:40]} 19. Kf1 {[%clk 0:01:14]}  Nxd4 {[%clk 0:01:37]} 20. Nxd4 {[%clk 0:01:12]}  Bxc3 {[%clk 0:01:31]} 21. bxc3 {[%clk 0:01:12]}  Rc8 {[%clk 0:01:20]} 22. Rg1 {[%clk 0:00:58]}  g6 {[%clk 0:01:12]} 23. Qf4 {[%clk 0:00:54]}  Qxc3 {[%clk 0:01:04]} 24. Qf6 {[%clk 0:00:51]}  Qxa1+ {[%clk 0:00:51]} 25. Kg2 {[%clk 0:00:50]}  Qxd4 {[%clk 0:00:45]} 26. Qxh8+ {[%clk 0:00:49]}  Kd7 {[%clk 0:00:46]} 27. Kh2 {[%clk 0:00:40]}  Qxh4+ {[%clk 0:00:45]} 28. Kg2 {[%clk 0:00:39]}  Bf3+ {[%clk 0:00:45]} 29. Kxf3 {[%clk 0:00:00]}  Qxh8 {[%clk 0:00:46]} 0-1


[Site "https://www.chess.com"]

[Event "Titled Tuesday Blitz July 18 Early 2023"]
[White "Firouzja, Alireza"]
[Black "Nakamura, Hikaru"]
[WhiteFideId "12573981"]
[BlackFideId "2016192"]
[WhiteElo "3111"]
[BlackElo "3266"]
[Result "1/2-1/2"]
[Round "9"]
[TimeControl "180+2"]
[Date "2023.07.18"]
[WhiteClock "0:00:04"]
[BlackClock "0:00:08"]
[Board "1"]

1. d4 {[%clk 0:02:50]}  a6 {[%clk 0:03:00]} 2. e4 {[%clk 0:02:47]}  e6 {[%clk 0:02:59]} 3. Nf3 {[%clk 0:02:40]}  d5 {[%clk 0:02:59]} 4. Nc3 {[%clk 0:02:40]}  Nf6 {[%clk 0:02:50]} 5. Bd3 {[%clk 0:02:40]}  dxe4 {[%clk 0:02:40]} 6. Nxe4 {[%clk 0:02:41]}  Nbd7 {[%clk 0:02:41]} 7. Qe2 {[%clk 0:02:33]}  c5 {[%clk 0:02:40]} 8. dxc5 {[%clk 0:02:12]}  Nxe4 {[%clk 0:02:37]} 9. Bxe4 {[%clk 0:02:13]}  Nxc5 {[%clk 0:02:38]} 10. Bg5 {[%clk 0:02:04]}  Qc7 {[%clk 0:02:12]} 11. O-O-O {[%clk 0:02:00]}  Bd7 {[%clk 0:02:12]} 12. Rhe1 {[%clk 0:01:49]}  h6 {[%clk 0:02:07]} 13. Bd2 {[%clk 0:01:30]}  Rc8 {[%clk 0:02:03]} 14. Kb1 {[%clk 0:01:24]}  Be7 {[%clk 0:01:14]} 15. Bc3 {[%clk 0:01:21]}  Bf6 {[%clk 0:01:13]} 16. Bxf6 {[%clk 0:01:03]}  gxf6 {[%clk 0:01:14]} 17. Nd4 {[%clk 0:01:04]}  Qf4 {[%clk 0:00:57]} 18. Bf3 {[%clk 0:01:02]}  Kf8 {[%clk 0:00:44]} 19. g3 {[%clk 0:01:01]}  Qc7 {[%clk 0:00:44]} 20. Rd2 {[%clk 0:00:55]}  Kg7 {[%clk 0:00:45]} 21. Qe3 {[%clk 0:00:53]}  Rhd8 {[%clk 0:00:44]} 22. Red1 {[%clk 0:00:51]}  e5 {[%clk 0:00:42]} 23. Ne2 {[%clk 0:00:42]}  Be6 {[%clk 0:00:29]} 24. Nc3 {[%clk 0:00:42]}  Rxd2 {[%clk 0:00:28]} 25. Rxd2 {[%clk 0:00:43]}  Qa5 {[%clk 0:00:26]} 26. a3 {[%clk 0:00:41]}  Na4 {[%clk 0:00:23]} 27. Nxa4 {[%clk 0:00:38]}  Qxa4 {[%clk 0:00:24]} 28. Bxb7 {[%clk 0:00:37]}  Qb5 {[%clk 0:00:19]} 29. Bf3 {[%clk 0:00:30]}  a5 {[%clk 0:00:16]} 30. Qd3 {[%clk 0:00:24]}  Qc5 {[%clk 0:00:16]} 31. Bd5 {[%clk 0:00:23]}  Rd8 {[%clk 0:00:15]} 32. c4 {[%clk 0:00:23]}  Bg4 {[%clk 0:00:15]} 33. Ka2 {[%clk 0:00:20]}  Bh5 {[%clk 0:00:13]} 34. Qe3 {[%clk 0:00:20]}  Qc7 {[%clk 0:00:14]} 35. f4 {[%clk 0:00:16]}  Bg6 {[%clk 0:00:11]} 36. fxe5 {[%clk 0:00:16]}  fxe5 {[%clk 0:00:11]} 37. g4 {[%clk 0:00:17]}  f6 {[%clk 0:00:11]} 38. h4 {[%clk 0:00:17]}  Bf7 {[%clk 0:00:12]} 39. Qe4 {[%clk 0:00:16]}  a4 {[%clk 0:00:10]} 40. g5 {[%clk 0:00:12]}  fxg5 {[%clk 0:00:10]} 41. hxg5 {[%clk 0:00:13]}  h5 {[%clk 0:00:11]} 42. Qf3 {[%clk 0:00:10]}  Bxd5 {[%clk 0:00:10]} 43. cxd5 {[%clk 0:00:07]}  Qc4+ {[%clk 0:00:10]} 44. Kb1 {[%clk 0:00:07]}  Rf8 {[%clk 0:00:10]} 45. Qc3 {[%clk 0:00:04]}  Rf1+ {[%clk 0:00:11]} 46. Kc2 {[%clk 0:00:04]}  Qe4+ {[%clk 0:00:11]} 47. Qd3 {[%clk 0:00:04]}  Qh1 {[%clk 0:00:11]} 48. Rd1 {[%clk 0:00:04]}  Qg2+ {[%clk 0:00:11]} 49. Kb1 {[%clk 0:00:04]}  Rf2 {[%clk 0:00:11]} 50. Qc3 {[%clk 0:00:04]}  Qxg5 {[%clk 0:00:11]} 51. d6 {[%clk 0:00:03]}  Qf5+ {[%clk 0:00:10]} 52. Ka1 {[%clk 0:00:04]}  Rf1 {[%clk 0:00:09]} 53. Qd2 {[%clk 0:00:04]}  Rxd1+ {[%clk 0:00:09]} 54. Qxd1 {[%clk 0:00:04]}  Qd7 {[%clk 0:00:09]} 55. Qxh5 {[%clk 0:00:05]}  Qxd6 {[%clk 0:00:09]} 56. Qg4+ {[%clk 0:00:05]}  Kf6 {[%clk 0:00:10]} 57. Qxa4 {[%clk 0:00:05]}  Qd5 {[%clk 0:00:10]} 58. Qh4+ {[%clk 0:00:04]}  Kf5 {[%clk 0:00:10]} 59. a4 {[%clk 0:00:03]}  Qd1+ {[%clk 0:00:08]} 60. Ka2 {[%clk 0:00:03]}  e4 {[%clk 0:00:09]} 61. Qh3+ {[%clk 0:00:02]}  Kf4 {[%clk 0:00:09]} 62. Qh6+ {[%clk 0:00:02]}  Kf5 {[%clk 0:00:09]} 63. Qf8+ {[%clk 0:00:02]}  Kg4 {[%clk 0:00:09]} 64. Qg7+ {[%clk 0:00:02]}  Kf3 {[%clk 0:00:09]} 65. Qf6+ {[%clk 0:00:02]}  Ke2 {[%clk 0:00:09]} 66. b3 {[%clk 0:00:01]}  e3 {[%clk 0:00:09]} 67. a5 {[%clk 0:00:01]}  Qd2+ {[%clk 0:00:10]} 68. Qb2 {[%clk 0:00:02]}  Ke1 {[%clk 0:00:08]} 69. a6 {[%clk 0:00:02]}  Qa5+ {[%clk 0:00:08]} 70. Qa3 {[%clk 0:00:02]}  Qd2+ {[%clk 0:00:09]} 71. Kb1 {[%clk 0:00:03]}  e2 {[%clk 0:00:08]} 72. a7 {[%clk 0:00:01]}  Qd3+ {[%clk 0:00:07]} 73. Ka2 {[%clk 0:00:02]}  Qd2+ {[%clk 0:00:07]} 74. Ka1 {[%clk 0:00:03]}  Qd1+ {[%clk 0:00:07]} 75. Ka2 {[%clk 0:00:03]}  Qd2+ {[%clk 0:00:08]} 76. Qb2 {[%clk 0:00:04]}  Qa5+ {[%clk 0:00:08]} 77. Qa3 {[%clk 0:00:04]}  Qd2+ {[%clk 0:00:08]} 1/2-1/2


[Site "https://www.chess.com"]

[Event "Titled Tuesday Blitz July 18 Early 2023"]
[White "Tasdogen, Dincer"]
[Black "Martinez Alcantara, Jose Eduardo"]
[WhiteFideId "6367097"]
[BlackFideId "3805662"]
[WhiteElo "2948"]
[BlackElo "3031"]
[Result "0-1"]
[Round "9"]
[TimeControl "180+2"]
[Date "2023.07.18"]
[WhiteClock "0:00:02"]
[BlackClock "0:00:13"]
[Board "7"]

1. Nf3 {[%clk 0:03:00]}  c5 {[%clk 0:02:59]} 2. g3 {[%clk 0:02:59]}  Nc6 {[%clk 0:02:59]} 3. Bg2 {[%clk 0:02:59]}  g6 {[%clk 0:03:00]} 4. O-O {[%clk 0:02:57]}  Bg7 {[%clk 0:03:01]} 5. d3 {[%clk 0:02:51]}  d6 {[%clk 0:03:00]} 6. c4 {[%clk 0:02:49]}  e6 {[%clk 0:03:00]} 7. Nc3 {[%clk 0:02:48]}  Nge7 {[%clk 0:03:00]} 8. Rb1 {[%clk 0:02:48]}  O-O {[%clk 0:03:01]} 9. a3 {[%clk 0:02:49]}  b6 {[%clk 0:03:01]} 10. Bd2 {[%clk 0:02:49]}  Bb7 {[%clk 0:03:01]} 11. b4 {[%clk 0:02:50]}  h6 {[%clk 0:03:00]} 12. Qc1 {[%clk 0:02:30]}  Kh7 {[%clk 0:02:27]} 13. bxc5 {[%clk 0:02:30]}  dxc5 {[%clk 0:02:26]} 14. Ne4 {[%clk 0:02:31]}  Rb8 {[%clk 0:02:15]} 15. Bc3 {[%clk 0:02:28]}  e5 {[%clk 0:02:12]} 16. Ned2 {[%clk 0:02:16]}  Qd7 {[%clk 0:02:05]} 17. Re1 {[%clk 0:02:09]}  Nf5 {[%clk 0:02:04]} 18. a4 {[%clk 0:02:07]}  Nfd4 {[%clk 0:01:52]} 19. a5 {[%clk 0:01:59]}  bxa5 {[%clk 0:01:39]} 20. Ne4 {[%clk 0:01:51]}  Qe7 {[%clk 0:01:34]} 21. Bb2 {[%clk 0:01:36]}  Nb4 {[%clk 0:01:17]} 22. Ba3 {[%clk 0:01:20]}  Bxe4 {[%clk 0:01:12]} 23. dxe4 {[%clk 0:01:15]}  Rfd8 {[%clk 0:01:10]} 24. Qc3 {[%clk 0:00:55]}  Rb6 {[%clk 0:01:00]} 25. Bb2 {[%clk 0:00:42]}  Nbc2 {[%clk 0:00:53]} 26. Nxd4 {[%clk 0:00:39]}  Nxe1 {[%clk 0:00:53]} 27. Nb5 {[%clk 0:00:34]}  Nxg2 {[%clk 0:00:53]} 28. Kxg2 {[%clk 0:00:35]}  a4 {[%clk 0:00:45]} 29. Qc2 {[%clk 0:00:22]}  Rdb8 {[%clk 0:00:42]} 30. Nc3 {[%clk 0:00:17]}  Qe6 {[%clk 0:00:22]} 31. Nxa4 {[%clk 0:00:17]}  Rb4 {[%clk 0:00:22]} 32. Nxc5 {[%clk 0:00:16]}  Qxc4 {[%clk 0:00:21]} 33. Qxc4 {[%clk 0:00:14]}  Rxc4 {[%clk 0:00:22]} 34. Nd3 {[%clk 0:00:15]}  Rxe4 {[%clk 0:00:20]} 35. Re1 {[%clk 0:00:12]}  Rb5 {[%clk 0:00:16]} 36. Bc3 {[%clk 0:00:10]}  Rc4 {[%clk 0:00:16]} 37. Bd2 {[%clk 0:00:10]}  e4 {[%clk 0:00:16]} 38. Nf4 {[%clk 0:00:11]}  a5 {[%clk 0:00:14]} 39. f3 {[%clk 0:00:06]}  a4 {[%clk 0:00:13]} 40. fxe4 {[%clk 0:00:07]}  Rxe4 {[%clk 0:00:14]} 41. Rc1 {[%clk 0:00:05]}  a3 {[%clk 0:00:13]} 42. Rc7 {[%clk 0:00:02]}  a2 {[%clk 0:00:13]} 0-1


[Site "https://www.chess.com"]

[Event "Titled Tuesday Blitz July 18 Early 2023"]
[White "Donchenko, Alexander"]
[Black "Schnaider, Ilan"]
[WhiteFideId "24603295"]
[BlackFideId "169013"]
[WhiteElo "2865"]
[BlackElo "2655"]
[Result "1-0"]
[Round "9"]
[TimeControl "180+2"]
[Date "2023.07.18"]
[WhiteClock "0:00:29"]
[BlackClock "0:00:09"]
[Board "16"]

1. d4 {[%clk 0:03:00]}  d5 {[%clk 0:02:57]} 2. c4 {[%clk 0:03:00]}  c6 {[%clk 0:02:57]} 3. Nf3 {[%clk 0:03:00]}  Nf6 {[%clk 0:02:57]} 4. Qc2 {[%clk 0:03:00]}  e6 {[%clk 0:02:54]} 5. Nbd2 {[%clk 0:03:00]}  Nbd7 {[%clk 0:02:53]} 6. g3 {[%clk 0:03:00]}  b6 {[%clk 0:02:52]} 7. Bg2 {[%clk 0:03:00]}  Bb7 {[%clk 0:02:53]} 8. O-O {[%clk 0:03:01]}  Be7 {[%clk 0:02:54]} 9. e4 {[%clk 0:03:01]}  dxe4 {[%clk 0:02:53]} 10. Nxe4 {[%clk 0:03:02]}  Nxe4 {[%clk 0:02:54]} 11. Qxe4 {[%clk 0:03:03]}  Nf6 {[%clk 0:02:54]} 12. Qc2 {[%clk 0:03:03]}  O-O {[%clk 0:02:52]} 13. Ne5 {[%clk 0:03:01]}  Qxd4 {[%clk 0:02:38]} 14. Bxc6 {[%clk 0:02:53]}  Bxc6 {[%clk 0:02:24]} 15. Nxc6 {[%clk 0:02:54]}  Qd6 {[%clk 0:02:25]} 16. Nxe7+ {[%clk 0:02:53]}  Qxe7 {[%clk 0:02:26]} 17. Bf4 {[%clk 0:02:50]}  Rac8 {[%clk 0:02:23]} 18. Rfd1 {[%clk 0:02:46]}  Nd5 {[%clk 0:02:20]} 19. Be5 {[%clk 0:02:43]}  b5 {[%clk 0:02:15]} 20. b3 {[%clk 0:02:36]}  bxc4 {[%clk 0:02:15]} 21. bxc4 {[%clk 0:02:37]}  Rfd8 {[%clk 0:01:25]} 22. Rac1 {[%clk 0:02:29]}  Nb4 {[%clk 0:01:08]} 23. Qb3 {[%clk 0:02:20]}  Nc6 {[%clk 0:01:08]} 24. Ba1 {[%clk 0:02:15]}  e5 {[%clk 0:01:05]} 25. Qe3 {[%clk 0:02:01]}  h6 {[%clk 0:01:02]} 26. Rd5 {[%clk 0:01:58]}  Qe6 {[%clk 0:00:39]} 27. Bxe5 {[%clk 0:01:47]}  Rxd5 {[%clk 0:00:34]} 28. cxd5 {[%clk 0:01:47]}  Qxd5 {[%clk 0:00:33]} 29. Rc5 {[%clk 0:01:34]}  Qe6 {[%clk 0:00:31]} 30. Qc3 {[%clk 0:01:27]}  f6 {[%clk 0:00:29]} 31. Bf4 {[%clk 0:01:24]}  Ne7 {[%clk 0:00:29]} 32. Rxc8+ {[%clk 0:01:15]}  Qxc8 {[%clk 0:00:29]} 33. Qb3+ {[%clk 0:01:12]}  Kh7 {[%clk 0:00:29]} 34. h4 {[%clk 0:01:08]}  h5 {[%clk 0:00:23]} 35. a4 {[%clk 0:01:06]}  Qc5 {[%clk 0:00:19]} 36. Be3 {[%clk 0:01:01]}  Qc7 {[%clk 0:00:18]} 37. Qd3+ {[%clk 0:00:59]}  Ng6 {[%clk 0:00:15]} 38. Qf5 {[%clk 0:00:58]}  Qf7 {[%clk 0:00:04]} 39. Qxh5+ {[%clk 0:00:58]}  Kg8 {[%clk 0:00:05]} 40. Bd4 {[%clk 0:00:54]}  Qe8 {[%clk 0:00:03]} 41. Qd5+ {[%clk 0:00:54]}  Kh7 {[%clk 0:00:03]} 42. a5 {[%clk 0:00:48]}  Qe1+ {[%clk 0:00:02]} 43. Kg2 {[%clk 0:00:48]}  Ne7 {[%clk 0:00:03]} 44. Qf3 {[%clk 0:00:44]}  a6 {[%clk 0:00:02]} 45. Be3 {[%clk 0:00:35]}  Qxa5 {[%clk 0:00:01]} 46. Qe4+ {[%clk 0:00:36]}  Nf5 {[%clk 0:00:01]} 47. g4 {[%clk 0:00:36]}  g6 {[%clk 0:00:01]} 48. gxf5 {[%clk 0:00:36]}  Qxf5 {[%clk 0:00:02]} 49. Qxf5 {[%clk 0:00:35]}  gxf5 {[%clk 0:00:02]} 50. Kf3 {[%clk 0:00:34]}  Kg6 {[%clk 0:00:03]} 51. Kf4 {[%clk 0:00:34]}  a5 {[%clk 0:00:03]} 52. Bb6 {[%clk 0:00:34]}  a4 {[%clk 0:00:03]} 53. Bc5 {[%clk 0:00:35]}  Kh5 {[%clk 0:00:03]} 54. Kxf5 {[%clk 0:00:29]}  Kxh4 {[%clk 0:00:04]} 55. f4 {[%clk 0:00:29]}  Kg3 {[%clk 0:00:04]} 56. Bd4 {[%clk 0:00:29]}  a3 {[%clk 0:00:01]} 57. Bxf6 {[%clk 0:00:29]}  a2 {[%clk 0:00:02]} 58. Be5 {[%clk 0:00:29]}  Kh4 {[%clk 0:00:02]} 59. Kg6 {[%clk 0:00:29]}  Kg4 {[%clk 0:00:03]} 60. f5 {[%clk 0:00:29]}  a1=Q {[%clk 0:00:04]} 61. Bxa1 {[%clk 0:00:28]}  Kf4 {[%clk 0:00:04]} 62. f6 {[%clk 0:00:28]}  Ke4 {[%clk 0:00:05]} 63. f7 {[%clk 0:00:29]}  Kd5 {[%clk 0:00:06]} 64. f8=Q {[%clk 0:00:29]}  Kc6 {[%clk 0:00:07]} 65. Qf5 {[%clk 0:00:28]}  Kb7 {[%clk 0:00:07]} 66. Qe6 {[%clk 0:00:28]}  Kc7 {[%clk 0:00:07]} 67. Kf6 {[%clk 0:00:28]}  Kd8 {[%clk 0:00:07]} 68. Qf7 {[%clk 0:00:28]}  Kc8 {[%clk 0:00:08]} 69. Ke6 {[%clk 0:00:29]}  Kb8 {[%clk 0:00:08]} 70. Kd6 {[%clk 0:00:30]}  Kc8 {[%clk 0:00:09]} 71. Qc7# {[%clk 0:00:29]} 1-0


[Site "https://www.chess.com"]